bitfinex/quotes_SOLUSD_20241022
["timestamp","ask_amount","ask_price","bid_price","bid_amount"]
[1729612067164,6.0127,168.83,168.71,16.88443877]
[1729612067756,6.0127,168.83,168.73,16.88443877]
[1729612068462,21.5287,168.84,168.74,15.9953]
[1729612068964,25.9225,168.85,168.74,15.9953]
[1729612069172,20.0,168.85,168.75,16.88443877]
[1729612069571,5.9225,168.85,168.75,16.88443877]
[1729612071267,5.9228,168.84,168.75,16.88443877]
[1729612072865,5.9228,168.84,168.74,15.9953]
[1729612073464,12.10913526,168.86,168.75,23.776884]
[1729612073666,12.10913526,168.86,168.75,40.66132277]
[1729612074345,5.9238,168.82,168.74,15.9953]
[1729612075953,5.924,168.81,168.74,15.9953]
[1729612076155,14.8069,168.84,168.7,15.1489]
[1729612076372,5.9244,168.8,168.7,15.1489]
[1729612080674,5.9239,168.81,168.7,15.1489]
[1729612082272,23.776884,168.82,168.73,10.7930713]
[1729612082466,5.9241,168.8,168.73,10.7930713]
[1729612086158,23.776884,168.82,168.73,10.7930713]
[1729612086358,5.9246,168.79,168.73,10.7930713]
[1729612086565,5.9246,168.79,168.71,10.7930713]
[1729612086972,5.9253,168.77,168.7,15.1489]
[1729612090879,21.8648,168.81,168.73,10.7930713]
[1729612091056,4.3160724,168.8,168.73,10.7930713]
[1729612091263,5.9237,168.82,168.73,10.7930713]
[1729612091584,4.31694041,168.81,168.73,10.7930713]
[1729612091782,4.31694041,168.8,168.73,10.7930713]
[1729612091985,5.9232,168.83,168.75,10.7930713]
[1729612092165,4.31739128,168.82,168.75,10.7930713]
[1729612092494,4.31739128,168.81,168.75,10.7930713]
[1729612092785,4.31739128,168.8,168.75,10.7930713]
[1729612093076,12.10979945,168.84,168.75,10.7930713]
[1729612093283,4.31757385,168.83,168.75,10.7930713]
[1729612093459,4.31757385,168.82,168.75,10.7930713]
[1729612093667,4.31757385,168.81,168.75,10.7930713]
[1729612093865,4.31757385,168.8,168.75,10.7930713]
[1729612094077,12.10979945,168.84,168.75,10.7930713]
[1729612094386,4.31761717,168.83,168.77,10.7930713]
[1729612094573,34.01800117,168.82,168.75,10.7930713]
[1729612094774,10.24171717,168.81,168.75,10.7930713]
[1729612095074,10.24181717,168.8,168.73,10.7930713]
[1729612095279,5.9242,168.8,168.71,10.7930713]
[1729612095593,23.776884,168.82,168.71,10.7930713]
[1729612095771,5.9252,168.78,168.71,10.7930713]
[1729612095965,23.776884,168.8,168.7,15.1489]
[1729612096166,23.776884,168.75,168.66,15.8562]
[1729612096382,23.776884,168.75,168.66,26.6492713]
[1729612096885,20.0,168.77,168.68,10.7930713]
[1729612097085,27.504,168.78,168.7,10.7930713]
[1729612097288,4.31900345,168.77,168.7,10.7930713]
[1729612097787,21.5789,168.82,168.72,10.7930713]
[1729612097969,4.32080522,168.81,168.74,10.7930713]
[1729612098284,4.32080522,168.8,168.72,32.71608637]
[1729612098480,4.32080522,168.79,168.72,32.71608637]
[1729612098672,21.5789,168.82,168.72,32.71608637]
[1729612100385,5.9245,168.8,168.68,32.71608637]
[1729612101484,5.9245,168.8,168.7,16.85988637]
[1729612103090,21.5789,168.82,168.7,16.85988637]
[1729612103389,5.9224,168.85,168.72,16.85988637]
[1729612103682,4.32227639,168.84,168.74,16.85988637]
[1729612103885,4.32227639,168.83,168.74,16.85988637]
[1729612104088,5.9224,168.85,168.74,16.85988637]
[1729612104268,4.32206052,168.84,168.74,16.85988637]
[1729612104468,5.9224,168.85,168.74,16.85988637]
[1729612104686,4.32214637,168.84,168.74,16.85988637]
[1729612104890,5.9224,168.85,168.74,16.85988637]
[1729612105079,4.32216077,168.84,168.74,16.85988637]
[1729612105264,5.9224,168.85,168.74,16.85988637]
[1729612105461,4.32140158,168.84,168.74,16.85988637]
[1729612105682,5.9224,168.85,168.74,16.85988637]
[1729612105876,4.32206909,168.84,168.74,16.85988637]
[1729612106078,5.9224,168.85,168.74,16.85988637]
[1729612106277,4.32237402,168.84,168.74,16.85988637]
[1729612106479,4.32237402,168.84,168.68,15.9562]
[1729612106480,5.9229,168.84,168.72,16.85988637]
[1729612107076,5.923,168.84,168.72,16.85988637]
[1729612107481,5.9235,168.82,168.72,16.85988637]
[1729612108265,25.9232,168.83,168.72,16.85988637]
[1729612109673,23.776884,168.82,168.72,16.85988637]
[1729612109985,29.700584,168.82,168.72,16.85988637]
[1729612110487,23.776884,168.82,168.72,16.85988637]
[1729612110691,5.9238,168.81,168.7,16.85988637]
[1729612112195,5.9231,168.83,168.72,16.85988637]
[1729612112690,5.9231,168.83,168.69,23.776884]
[1729612112691,6.17530198,168.84,168.74,16.85988637]
[1729612112898,5.9224,168.85,168.74,16.85988637]
[1729612113098,4.32446954,168.84,168.74,16.85988637]
[1729612113274,5.9224,168.85,168.74,16.85988637]
[1729612113475,4.32425712,168.84,168.74,16.85988637]
[1729612113778,5.9224,168.85,168.74,16.85988637]
[1729612113982,5.9233,168.83,168.74,16.85988637]
[1729612114172,5.9233,168.83,168.73,16.305]
[1729612118596,5.9235,168.82,168.73,16.305]
[1729612118773,20.0,168.84,168.73,16.305]
[1729612118972,23.776884,168.83,168.73,16.305]
[1729612119180,5.9238,168.82,168.73,16.305]
[1729612119986,5.9238,168.82,168.72,16.85988637]
[1729612119987,20.0,168.8,168.69,16.2321]
[1729612120292,5.9248,168.78,168.69,16.2321]
[1729612120493,23.776884,168.77,168.69,16.2321]
[1729612120799,23.776884,168.8,168.7,16.85988637]
[1729612122595,29.0525,168.81,168.69,16.2321]
[1729612122596,23.1286,168.81,168.72,16.85988637]
[1729612122777,5.9233,168.83,168.72,16.85988637]
[1729612123180,5.9227,168.84,168.74,16.85988637]
[1729612123997,23.776884,168.83,168.74,16.85988637]
[1729612125597,23.776884,168.83,168.7,23.776884]
[1729612125598,5.9235,168.82,168.72,16.85988637]
[1729612125783,23.776884,168.81,168.72,16.85988637]
[1729612126205,5.9237,168.82,168.72,16.85988637]
[1729612126707,20.0,168.83,168.72,16.85988637]
[1729612126903,25.9231,168.83,168.72,16.85988637]
[1729612128576,20.0,168.83,168.72,16.85988637]
[1729612129302,25.9231,168.83,168.72,16.85988637]
[1729612131782,29.43200917,168.85,168.75,32.49858637]
[1729612131993,23.2699,168.85,168.75,32.49858637]
[1729612132177,44.76815856,168.89,168.75,32.49858637]
[1729612132379,4.31705769,168.88,168.75,32.49858637]
[1729612132583,4.31705769,168.87,168.75,32.49858637]
[1729612132800,44.76815856,168.89,168.75,32.49858637]
[1729612133001,20.0,168.86,168.75,32.49858637]
[1729612134600,23.776884,168.85,168.75,15.6387]
[1729612134782,5.9233,168.83,168.75,15.6387]
[1729612135914,5.9228,168.84,168.75,15.6387]
[1729612136604,23.776884,168.84,168.75,15.6387]
[1729612137013,29.699584,168.84,168.75,15.6387]
[1729612138595,5.9231,168.83,168.75,15.6387]
[1729612138800,5.9235,168.82,168.73,6.2041]
[1729612140206,23.776884,168.84,168.73,6.2041]
[1729612140399,5.9231,168.83,168.73,6.2041]
[1729612141916,5.9246,168.79,168.71,32.15598637]
[1729612142212,23.776884,168.76,168.67,16.0132]
[1729612142589,5.9263,168.74,168.67,16.0132]
[1729612143706,42.3252,168.77,168.67,32.87308637]
[1729612144010,22.3252,168.77,168.67,32.87308637]
[1729612144312,20.0,168.79,168.67,16.0132]
[1729612144706,20.0,168.79,168.68,16.85988637]
[1729612144898,5.9248,168.78,168.68,16.85988637]
[1729612147510,5.9248,168.78,168.68,13.98136063]
[1729612147815,5.9254,168.77,168.67,16.0132]
[1729612147986,5.9255,168.76,168.67,16.0132]
[1729612148807,23.776884,168.75,168.67,16.0132]
[1729612149316,5.9263,168.74,168.67,16.0132]
[1729612151207,34.8117,168.79,168.67,16.0132]
[1729612151414,5.9251,168.78,168.68,16.85988637]
[1729612151729,15.1259,168.81,168.68,16.85988637]
[1729612151730,25.9243,168.8,168.68,16.85988637]
[1729612151917,21.0497,168.81,168.7,16.85988637]
[1729612152086,15.1259,168.81,168.7,16.85988637]
[1729612152291,5.9242,168.8,168.67,16.0132]
[1729612152496,15.1259,168.81,168.69,16.85988637]
[1729612152497,21.0498,168.81,168.69,16.85988637]
[1729612152896,15.1259,168.81,168.71,16.85988637]
[1729612153100,11.32614497,168.82,168.73,16.85988637]
[1729612153790,17.24954497,168.82,168.71,23.50578637]
[1729612153986,11.32614497,168.82,168.71,23.50578637]
[1729612154218,23.776884,168.81,168.69,16.85988637]
[1729612154593,11.32614497,168.82,168.71,16.85988637]
[1729612158713,12.46277688,168.86,168.76,16.85988637]
[1729612158924,6.16827688,168.86,168.78,16.85988637]
[1729612159090,16.4007,168.89,168.8,16.85988637]
[1729612159289,6.6111,168.9,168.79,16.2368]
[1729612159290,4.33893515,168.88,168.82,16.85988637]
[1729612159513,0.628041,168.92,168.82,16.85988637]
[1729612159918,4.34013475,168.91,168.82,16.85988637]
[1729612160118,4.34013475,168.9,168.82,16.85988637]
[1729612160412,0.628041,168.92,168.82,16.85988637]
[1729612161491,0.628041,168.92,168.84,16.85988637]
[1729612163196,0.628041,168.92,168.86,16.85988637]
[1729612163400,0.628041,168.92,168.91,16.85988637]
[1729612164122,12.3686,169.04,168.91,16.85988637]
[1729612164416,12.3686,169.04,168.94,16.85988637]
[1729612164417,4.3356501,169.03,168.94,16.85988637]
[1729612164618,5.9153,169.06,168.96,16.85988637]
[1729612164807,10.2487248,169.05,168.96,16.85988637]
[1729612164997,5.9156,169.05,168.96,16.85988637]
[1729612165806,20.0,169.04,168.96,16.85988637]
[1729612167000,29.693984,169.01,168.92,16.85988637]
[1729612167206,29.693984,169.01,168.91,15.8514]
[1729612168725,5.9176,168.99,168.9,16.85988637]
[1729612169226,5.9175,168.99,168.9,16.85988637]
[1729612169424,5.9183,168.97,168.88,16.85988637]
[1729612169719,5.9178,168.98,168.88,16.85988637]
[1729612169926,20.0,168.98,168.86,16.85988637]
[1729612170136,5.9196,168.93,168.84,16.85988637]
[1729612170420,5.92,168.92,168.84,16.85988637]
[1729612170718,5.92,168.92,168.82,33.49338637]
[1729612170719,5.9201,168.92,168.82,33.49338637]
[1729612171129,5.9192,168.94,168.82,33.49338637]
[1729612171302,43.776884,168.95,168.82,33.49338637]
[1729612172005,23.776884,168.91,168.82,33.49338637]
[1729612172329,5.9205,168.91,168.82,16.6335]
[1729612174424,61.596884,168.95,168.82,16.6335]
[1729612174629,5.9212,168.89,168.8,26.94886988]
[1729612177931,5.9217,168.87,168.77,49.08466988]
[1729612178105,5.9221,168.86,168.77,49.08466988]
[1729612178312,30.3564,168.92,168.77,49.08466988]
[1729612178517,23.776884,168.88,168.77,49.08466988]
[1729612178722,29.698384,168.88,168.77,49.08466988]
[1729612180827,30.3564,168.92,168.77,22.1358]
[1729612180828,23.776884,168.86,168.77,22.1358]
[1729612181036,5.9227,168.85,168.77,15.6693]
[1729612181330,5.924,168.81,168.72,15.4026]
[1729612181922,5.9242,168.8,168.72,15.4026]
[1729612185712,5.9246,168.79,168.71,26.94886988]
[1729612185916,5.9246,168.79,168.69,6.2543]
[1729612188016,43.776884,168.81,168.69,6.2543]
[1729612188217,5.9249,168.78,168.69,6.2543]
[1729612189229,5.9245,168.79,168.69,6.2543]
[1729612194419,5.9245,168.79,168.71,16.86530822]
[1729612200924,5.9237,168.82,168.73,16.86530822]
[1729612210526,5.9237,168.82,168.69,6.2543]
[1729612210527,6.3214,168.85,168.75,32.52420822]
[1729612210734,15.7101,168.87,168.79,16.86530822]
[1729612211135,6.1014,168.89,168.79,16.86530822]
[1729612211335,6.1014,168.89,168.81,16.86530822]
[1729612211548,12.0224,168.89,168.81,16.86530822]
[1729612211766,5.9214,168.88,168.81,16.86530822]
[1729612212248,5.9214,168.88,168.76,6.2552]
[1729612212249,6.1014,168.89,168.77,16.86530822]
[1729612212449,23.776884,168.88,168.75,32.52420822]
[1729612212829,23.776884,168.83,168.73,16.86530822]
[1729612213147,5.924,168.81,168.73,16.86530822]
[1729612213831,15.7101,168.84,168.73,16.86530822]
[1729612214037,15.7101,168.84,168.75,16.86530822]
[1729612214246,21.6329,168.84,168.75,16.86530822]
[1729612214858,15.7101,168.84,168.75,16.86530822]
[1729612215042,5.9231,168.83,168.75,16.86530822]
[1729612216256,5.9231,168.83,168.77,10.78908166]
[1729612218036,5.9246,168.79,168.74,10.78908166]
[1729612219744,5.9246,168.79,168.71,15.6589]
[1729612219944,5.9246,168.79,168.72,10.78908166]
[1729612220148,5.9252,168.77,168.72,10.78908166]
[1729612223062,5.9257,168.76,168.71,10.78908166]
[1729612223635,61.566884,168.78,168.64,6.4031]
[1729612223842,23.776884,168.72,168.64,10.78908166]
[1729612224053,29.704084,168.72,168.66,10.78908166]
[1729612224957,20.0,168.74,168.66,10.78908166]
[1729612225162,29.703184,168.74,168.68,10.78908166]
[1729612225636,23.776884,168.74,168.68,10.78908166]
[1729612225838,23.776884,168.74,168.63,16.2459]
[1729612225839,5.9271,168.72,168.63,16.2459]
[1729612226140,23.776884,168.74,168.66,10.78908166]
[1729612226353,5.9276,168.71,168.64,10.78908166]
[1729612228152,5.9276,168.71,168.6,6.0334]
[1729612228362,5.9276,168.71,168.63,10.78908166]
[1729612229277,6.203,168.69,168.59,15.9559]
[1729612229445,5.9293,168.66,168.59,26.74498166]
[1729612230068,5.9296,168.65,168.59,15.9559]
[1729612230252,5.9296,168.65,168.58,10.78908166]
[1729612230570,5.9301,168.63,168.57,10.78908166]
[1729612231145,43.776884,168.68,168.57,10.78908166]
[1729612231345,43.776884,168.68,168.61,10.78908166]
[1729612231551,49.705284,168.68,168.61,10.78908166]
[1729612231757,5.9284,168.68,168.61,10.78908166]
[1729612233066,5.9287,168.67,168.61,10.78908166]
[1729612233769,5.9292,168.66,168.61,10.78908166]
[1729612233972,6.203,168.69,168.53,16.5316]
[1729612234178,5.93,168.64,168.53,16.5316]
[1729612234379,5.93,168.64,168.56,10.78908166]
[1729612234563,23.776884,168.63,168.56,10.78908166]
[1729612234765,23.776884,168.62,168.53,16.5316]
[1729612234961,5.9314,168.6,168.53,16.5316]
[1729612235167,29.707984,168.6,168.53,10.78908166]
[1729612236369,34.8244,168.64,168.56,16.89823533]
[1729612236370,23.776884,168.64,168.56,16.89823533]
[1729612236563,27.8538,168.65,168.56,16.89823533]
[1729612237170,21.9242,168.65,168.56,16.89823533]
[1729612237374,5.9298,168.64,168.56,16.89823533]
[1729612240068,5.9303,168.63,168.53,16.89823533]
[1729612240281,23.776884,168.64,168.53,16.89823533]
[1729612240484,5.9305,168.62,168.53,16.89823533]
[1729612241166,5.9309,168.61,168.53,16.89823533]
[1729612243470,5.9312,168.6,168.53,16.89823533]
[1729612244994,20.0,168.63,168.51,16.89823533]
[1729612245285,5.9314,168.6,168.51,16.89823533]
[1729612246790,29.707584,168.62,168.51,16.89823533]
[1729612247080,23.776884,168.6,168.51,16.89823533]
[1729612248084,29.708084,168.6,168.51,16.89823533]
[1729612249091,5.9315,168.59,168.51,16.89823533]
[1729612250069,23.776884,168.58,168.49,17.52627633]
[1729612250379,23.776884,168.58,168.49,0.628041]
[1729612250590,20.0,168.57,168.49,0.628041]
[1729612250759,5.9335,168.54,168.49,0.628041]
[1729612250961,23.776884,168.56,168.49,0.628041]
[1729612251179,5.9337,168.53,168.49,0.628041]
[1729612251373,23.776884,168.56,168.49,0.628041]
[1729612251688,5.9333,168.54,168.49,0.628041]
[1729612252262,23.776884,168.56,168.49,0.628041]
[1729612252483,21.9659,168.57,168.49,0.628041]
[1729612252780,14.8272,168.61,168.49,0.628041]
[1729612252781,5.9327,168.56,168.49,0.628041]
[1729612256769,20.0,168.59,168.5,16.89823533]
[1729612256971,21.9659,168.61,168.52,16.89823533]
[1729612257169,12.08879482,168.63,168.52,16.89823533]
[1729612258505,5.9298,168.64,168.54,16.89823533]
[1729612259589,34.62563974,168.65,168.54,16.89823533]
[1729612259895,5.9299,168.64,168.54,16.89823533]
[1729612260081,23.776884,168.63,168.54,16.89823533]
[1729612260489,28.69623974,168.65,168.56,16.89823533]
[1729612260680,23.776884,168.64,168.56,16.89823533]
[1729612263470,29.706584,168.64,168.56,16.89823533]
[1729612264393,5.9302,168.63,168.56,16.89823533]
[1729612264576,23.776884,168.64,168.53,23.49923533]
[1729612264777,29.706684,168.64,168.53,23.49923533]
[1729612265384,5.9309,168.61,168.53,23.49923533]
[1729612265584,23.776884,168.64,168.53,23.49923533]
[1729612265585,23.776884,168.62,168.53,23.49923533]
[1729612266187,5.9308,168.61,168.53,23.49923533]
[1729612266814,5.9313,168.6,168.53,16.89823533]
[1729612267001,23.776884,168.63,168.51,15.7586]
[1729612267300,23.776884,168.57,168.5,16.89823533]
[1729612267599,23.776884,168.57,168.49,0.628041]
[1729612267800,5.9329,168.56,168.49,0.628041]
[1729612268187,23.776884,168.57,168.49,0.628041]
[1729612268707,23.776884,168.53,168.49,0.628041]
[1729612271007,5.9326,168.56,168.49,0.628041]
[1729612271209,23.776884,168.54,168.49,0.628041]
[1729612271505,25.9326,168.56,168.49,0.628041]
[1729612271832,23.776884,168.55,168.49,0.628041]
[1729612272712,23.776884,168.56,168.49,0.628041]
[1729612272903,20.0,168.51,168.39,6.16059548]
[1729612273104,20.0,168.47,168.39,6.16059548]
[1729612273411,20.0,168.47,168.35,15.5691]
[1729612273412,20.0,168.41,168.35,15.5691]
[1729612273613,6.6107,168.47,168.38,6.15805621]
[1729612273792,43.776884,168.43,168.35,15.5691]
[1729612274305,49.714084,168.43,168.35,15.5691]
[1729612274614,25.9373,168.43,168.35,15.5691]
[1729612274905,23.776884,168.4,168.31,32.46533533]
[1729612275311,23.776884,168.41,168.31,32.46533533]
[1729612275613,29.714784,168.41,168.31,32.46533533]
[1729612275910,23.776884,168.42,168.31,32.46533533]
[1729612276110,23.776884,168.4,168.31,32.46533533]
[1729612276287,29.715184,168.4,168.31,32.46533533]
[1729612276489,25.9386,168.39,168.31,15.5671]
[1729612277209,23.776884,168.38,168.31,15.5671]
[1729612277603,23.776884,168.36,168.24,21.4643]
[1729612277800,23.776884,168.34,168.25,16.89823533]
[1729612278403,23.776884,168.34,168.24,21.4643]
[1729612278603,25.9407,168.33,168.24,21.4643]
[1729612278810,49.717584,168.33,168.24,21.4643]
[1729612279329,49.717584,168.33,168.21,16.89823533]
[1729612279719,49.717584,168.33,168.2,21.8355]
[1729612281493,6.0866,168.37,168.23,16.89823533]
[1729612281836,20.0,168.35,168.25,16.89823533]
[1729612281994,20.0,168.36,168.25,16.89823533]
[1729612282319,20.0,168.34,168.25,16.89823533]
[1729612282807,5.94,168.35,168.25,16.89823533]
[1729612283396,5.94,168.35,168.2,21.8355]
[1729612283596,5.94,168.35,168.24,16.89823533]
[1729612283797,43.776884,168.36,168.26,16.89823533]
[1729612283996,1.03296303,168.39,168.26,16.89823533]
[1729612284215,6.4441,168.41,168.29,39.72203533]
[1729612284421,5.937,168.44,168.31,16.89823533]
[1729612284601,5.9372,168.43,168.31,16.89823533]
[1729612285115,5.9364,168.45,168.31,16.89823533]
[1729612285319,5.9382,168.41,168.31,16.89823533]
[1729612285615,5.9384,168.4,168.31,16.89823533]
[1729612285816,5.9389,168.38,168.29,22.8238]
[1729612286206,5.9396,168.36,168.29,22.8238]
[1729612286803,29.716984,168.35,168.29,22.8238]
[1729612288826,20.0,168.41,168.29,22.8238]
[1729612289030,5.9391,168.38,168.29,22.8238]
[1729612290324,20.0,168.41,168.29,22.8238]
[1729612290506,5.9387,168.39,168.29,22.8238]
[1729612290706,5.939,168.38,168.29,22.8238]
[1729612292628,5.9386,168.39,168.29,22.8238]
[1729612293602,5.9389,168.38,168.29,22.8238]
[1729612294220,23.776884,168.4,168.29,22.8238]
[1729612294421,25.9379,168.41,168.3,16.89823533]
[1729612294630,5.9379,168.41,168.33,16.89823533]
[1729612295413,5.9385,168.4,168.3,16.89823533]
[1729612300533,20.0,168.43,168.3,16.89823533]
[1729612300736,5.9378,168.41,168.3,16.89823533]
[1729612301115,5.9377,168.42,168.3,16.89823533]
[1729612301315,20.0,168.41,168.3,16.89823533]
[1729612302133,5.9377,168.42,168.3,16.89823533]
[1729612303423,5.9379,168.41,168.3,16.89823533]
[1729612303916,5.9379,168.41,168.32,17.52627633]
[1729612304122,5.9376,168.42,168.32,17.52627633]
[1729612306934,23.776884,168.44,168.32,17.52627633]
[1729612307144,12.05868131,168.45,168.36,16.89823533]
[1729612307314,5.9365,168.45,168.36,16.89823533]
[1729612307512,6.4441,168.46,168.36,16.89823533]
[1729612307732,5.9357,168.47,168.36,23.16123533]
[1729612308016,6.1324,168.5,168.36,23.16123533]
[1729612308230,5.9365,168.45,168.36,23.16123533]
[1729612312627,20.0,168.48,168.38,16.89823533]
[1729612312832,12.07804647,168.49,168.4,16.89823533]
[1729612313023,6.1324,168.5,168.4,16.89823533]
[1729612313343,14.8336,168.54,168.4,16.89823533]
[1729612313344,1.03217342,168.55,168.44,16.89823533]
[1729612313649,21.4511,168.56,168.44,16.89823533]
[1729612313650,5.9336,168.54,168.44,16.89823533]
[1729612314941,20.0,168.54,168.44,16.89823533]
[1729612315144,5.9336,168.54,168.44,16.89823533]
[1729612315320,20.0,168.55,168.44,16.89823533]
[1729612315523,5.9342,168.52,168.43,6.1048]
[1729612316335,5.9348,168.5,168.41,15.9525]
[1729612320744,20.0,168.53,168.41,15.9525]
[1729612321053,5.935,168.49,168.41,15.9525]
[1729612321345,5.9353,168.49,168.41,15.9525]
[1729612325253,26.12636827,168.53,168.41,15.9525]
[1729612325424,5.934,168.52,168.41,15.9525]
[1729612325750,5.934,168.52,168.43,16.89823533]
[1729612327252,20.0,168.54,168.43,16.89823533]
[1729612327451,5.9343,168.51,168.43,16.89823533]
[1729612330960,5.9347,168.5,168.43,16.89823533]
[1729612331134,5.9353,168.49,168.41,15.9525]
[1729612331868,20.0,168.48,168.34,15.513]
[1729612332051,5.9353,168.49,168.37,16.89823533]
[1729612332349,5.9354,168.48,168.37,16.89823533]
[1729612333163,5.935,168.49,168.37,16.89823533]
[1729612333333,5.935,168.49,168.38,23.776884]
[1729612335260,5.9347,168.5,168.38,23.776884]
[1729612335466,5.9353,168.49,168.38,23.776884]
[1729612335634,5.9354,168.48,168.38,23.776884]
[1729612335958,20.0,168.49,168.37,16.89823533]
[1729612336163,23.776884,168.47,168.37,16.89823533]
[1729612336450,5.936,168.47,168.37,16.89823533]
[1729612337453,5.9383,168.4,168.34,15.513]
[1729612337656,43.776884,168.42,168.32,0.628041]
[1729612337860,23.776884,168.41,168.32,0.628041]
[1729612338243,5.9392,168.38,168.32,0.628041]
[1729612340247,20.0,168.41,168.32,0.628041]
[1729612340449,5.9396,168.36,168.32,0.628041]
[1729612340654,5.9407,168.33,168.32,0.628041]
[1729612341545,5.9401,168.35,168.32,0.628041]
[1729612344153,5.9407,168.33,168.32,0.628041]
[1729612345356,5.94,168.35,168.32,0.628041]
[1729612346467,5.9407,168.33,168.32,0.628041]
[1729612347369,29.717584,168.33,168.32,0.628041]
[1729612347547,49.717584,168.33,168.32,0.628041]
[1729612347868,6.0651,168.36,168.32,0.628041]
[1729612348068,5.9403,168.34,168.32,0.628041]
[1729612348363,5.9401,168.35,168.32,0.628041]
[1729612348575,12.0047,168.36,168.32,0.628041]
[1729612349047,8.99363742,168.43,168.32,0.628041]
[1729612349048,6.1426,168.4,168.32,0.628041]
[1729612349254,5.9389,168.39,168.32,0.628041]
[1729612349454,5.939,168.38,168.32,0.628041]
[1729612350645,5.9393,168.37,168.32,0.628041]
[1729612351157,23.776884,168.39,168.32,0.628041]
[1729612351472,5.9389,168.38,168.32,0.628041]
[1729612351948,6.13404904,168.41,168.32,0.628041]
[1729612352156,5.9382,168.4,168.32,0.628041]
[1729612353973,6.13404904,168.41,168.32,0.628041]
[1729612354152,5.9389,168.39,168.32,0.628041]
[1729612354463,5.939,168.38,168.32,0.628041]
[1729612355056,23.776884,168.4,168.32,0.628041]
[1729612355246,5.9393,168.37,168.32,0.628041]
[1729612358773,5.94,168.35,168.32,0.628041]
[1729612359353,20.0,168.39,168.32,0.628041]
[1729612359547,43.776884,168.38,168.32,0.628041]
[1729612359746,5.9406,168.34,168.32,0.628041]
[1729612359960,43.776884,168.36,168.32,0.628041]
[1729612360156,5.9406,168.34,168.32,0.628041]
[1729612360754,43.776884,168.36,168.32,0.628041]
[1729612360957,5.9406,168.34,168.32,0.628041]
[1729612361556,5.9407,168.33,168.32,0.628041]
[1729612362468,23.776884,168.37,168.32,0.628041]
[1729612362773,20.0,168.37,168.32,0.628041]
[1729612362949,5.9396,168.36,168.32,0.628041]
[1729612363563,25.9396,168.37,168.32,0.628041]
[1729612363870,5.9403,168.35,168.32,0.628041]
[1729612364172,5.9404,168.34,168.32,0.628041]
[1729612365854,5.9407,168.33,168.32,0.628041]
[1729612368871,29.717584,168.33,168.32,0.628041]
[1729612369868,5.9407,168.33,168.32,0.628041]
[1729612371567,29.717584,168.33,168.32,0.628041]
[1729612372075,5.9407,168.33,168.32,0.628041]
[1729612372462,29.717584,168.33,168.32,0.628041]
[1729612377665,25.94,168.35,168.32,0.628041]
[1729612378054,5.9403,168.34,168.32,0.628041]
[1729612382683,5.9407,168.33,168.32,0.628041]
[1729612385387,29.717584,168.33,168.32,0.628041]
[1729612390883,49.717584,168.33,168.32,0.628041]
[1729612394392,55.86613855,168.33,168.32,0.628041]
[1729612395489,84.42988454,168.33,168.32,0.628041]
[1729612395691,17.79,168.29,168.2,15.2861]
[1729612395992,23.7335,168.25,168.16,15.2861]
[1729612396176,20.0,168.24,168.16,15.2861]
[1729612396366,5.9448,168.22,168.16,15.2861]
[1729612396898,44.1449,168.24,168.15,0.628041]
[1729612397095,5.9459,168.19,168.15,0.628041]
[1729612397473,14.8606,168.23,168.15,0.628041]
[1729612397667,20.0,168.21,168.15,0.628041]
[1729612397876,5.9467,168.16,168.15,0.628041]
[1729612398078,29.723584,168.16,168.15,0.628041]
[1729612399193,20.0,168.17,168.15,0.628041]
[1729612400092,5.9467,168.16,168.15,0.628041]
[1729612400284,29.723584,168.16,168.15,0.628041]
[1729612401699,20.0,168.23,168.15,0.628041]
[1729612401995,6.4549,168.24,168.15,0.628041]
[1729612402177,0.1,168.22,168.15,0.628041]
[1729612402375,14.8623,168.21,168.15,0.628041]
[1729612402592,5.9466,168.17,168.15,0.628041]
[1729612403095,29.723584,168.16,168.15,0.628041]
[1729612403903,5.9459,168.19,168.15,0.628041]
[1729612404270,20.0,168.2,168.15,0.628041]